fUST/lending_fUST_20240513
["ID","MTS","AMOUNT","RATE_DAILY","PERIOD"]
[326885483,1715541050976,-500.0,0.00062465,120]
[326885484,1715541050985,-2135.22,0.00062465,120]
[326885485,1715541050994,-500.0,0.00062465,120]
[326885486,1715541051006,-515.07,0.00062465,120]
[326885487,1715541051016,-500.0,0.00062465,120]
[326885488,1715541051025,-500.0,0.00062465,120]
[326885489,1715541051034,-500.0,0.00062465,120]
[326885490,1715541051043,-1775.92,0.00062465,120]
[326885491,1715541051052,-597.87,0.00062465,120]
[326885492,1715541051061,-512.05,0.00062465,120]
[326885493,1715541051069,-500.0,0.00062465,120]
[326885494,1715541051078,-500.0,0.00062465,120]
[326885495,1715541051087,-500.0,0.00062465,120]
[326885496,1715541051096,-500.0,0.00062465,120]
[326885497,1715541051104,-500.0,0.00062465,120]
[326885498,1715541051113,-1412.83,0.00062465,120]
[326885499,1715541051122,-500.0,0.00062465,2]
[326885500,1715541051131,-500.0,0.00062465,120]
[326885501,1715541051140,-1342.75,0.00062465,120]
[326885502,1715541051149,-500.0,0.00062465,120]
[326885503,1715541051158,-500.0,0.00062465,120]
[326885504,1715541051166,-500.0,0.00062465,120]
[326885505,1715541051175,-500.0,0.00062465,120]
[326885506,1715541051185,-3238.55,0.00062465,2]
[326885507,1715541051194,-500.0,0.00062465,120]
[326885508,1715541051204,-500.0,0.00062465,120]
[326885509,1715541051213,-12392.6,0.00062465,120]
[326885510,1715541051222,-500.0,0.00062465,120]
[326885511,1715541051231,-500.0,0.00062465,120]
[326885512,1715541051240,-4135.74,0.00062465,120]
[326885513,1715541051249,-830.16,0.00062465,120]
[326885514,1715541051258,-622.69,0.00062465,120]
[326885515,1715541051268,-500.0,0.00062465,120]
[326885516,1715541051277,-2083.37,0.00062465,120]
[326885517,1715541051286,-623.75,0.00062465,120]
[326885518,1715541051295,-35570.04,0.00062465,120]
[326885519,1715541051304,-1744.58,0.00062465,120]
[326885520,1715541051313,-500.0,0.00062465,120]
[326885521,1715541051322,-500.0,0.00062465,120]
[326885522,1715541051331,-11979.43,0.00062465,120]
[326885523,1715541051340,-500.0,0.00062465,120]
[326885524,1715541051349,-1714.81,0.00062465,21]
[326885525,1715541051358,-500.0,0.00063561,120]
[326885526,1715541051368,-500.0,0.00063561,120]
[326885528,1715541051377,-500.0,0.00063561,120]
[326885530,1715541051386,-500.0,0.00063561,120]
[326885532,1715541051395,-1345.11,0.00063561,120]
[326885534,1715541051403,-500.0,0.00063561,120]
[326885536,1715541051412,-500.0,0.00063561,120]
[326885538,1715541051421,-500.0,0.00063561,120]
[326885540,1715541051430,-500.0,0.00063561,120]
[326885542,1715541051439,-500.0,0.00063561,120]
[326885544,1715541051448,-500.0,0.00063561,120]
[326885546,1715541051459,-500.0,0.00063561,120]
[326885548,1715541051468,-500.0,0.00063561,120]
[326885550,1715541051477,-2135.22,0.00063561,120]
[326885552,1715541051486,-500.0,0.00063561,120]
[326885554,1715541051495,-515.07,0.00063561,120]
[326885556,1715541051504,-500.0,0.00063561,120]
[326885558,1715541051513,-500.0,0.00063561,120]
[326885560,1715541051522,-500.0,0.00063561,120]
[326885562,1715541051531,-1775.92,0.00063561,120]
[326885564,1715541051541,-597.87,0.00063561,120]
[326885566,1715541051550,-512.05,0.00063561,120]
[326885568,1715541051559,-500.0,0.00063561,120]
[326885570,1715541051567,-500.0,0.00063561,120]
[326885572,1715541051577,-500.0,0.00063561,120]
[326885574,1715541051586,-500.0,0.00063561,120]
[326885576,1715541051595,-500.0,0.00063561,120]
[326885578,1715541051603,-1412.83,0.00063561,120]
[326885580,1715541051612,-499.73625045,0.00063561,2]
[326885582,1715541051621,-500.0,0.00063561,120]
[326885584,1715541051630,-1342.75,0.00063561,120]
[326885586,1715541051639,-500.0,0.00063561,120]
[326885588,1715541051648,-500.0,0.00063561,120]
[326885590,1715541051657,-500.0,0.00063561,120]
[326885592,1715541051666,-299.23557273,0.00063561,120]
[326885594,1715541051676,-3238.55,0.00063561,2]
[326885596,1715541051684,-500.0,0.00063561,120]
[326885598,1715541051694,-341.84082514,0.00063561,120]
[326885600,1715541051704,-12392.6,0.00063561,120]
[326885602,1715541051713,-500.0,0.00063561,120]
[326885604,1715541051722,-500.0,0.00063561,120]
[326885606,1715541051736,-4135.74,0.00063561,120]
[326885608,1715541051745,-830.16,0.00063561,120]
[326885610,1715541051754,-622.69,0.00063561,120]
[326885612,1715541051763,-500.0,0.00063561,120]
[326885614,1715541051771,-2083.37,0.00063561,120]
[326885615,1715541051780,-623.75,0.00063561,120]
[326885617,1715541051789,-35570.04,0.00063561,120]
[326885619,1715541051798,-1744.58,0.00063561,120]
[326885621,1715541051807,-500.0,0.00063561,120]
[326885623,1715541051816,-500.0,0.00063561,120]
[326885625,1715541051825,-11979.43,0.00063561,120]
[326885627,1715541051834,-500.0,0.00063561,120]
[326885629,1715541051842,-1714.81,0.00063561,21]
[326885631,1715541051852,-160.065479,0.0006407,2]
[326885633,1715541051861,-565.97584437,0.00064464,30]
[326885635,1715541051870,-500.0,0.00064657,120]
[326885637,1715541051880,-500.0,0.00064657,120]
[326885639,1715541051889,-500.0,0.00064657,120]
[326885640,1715541051898,-490.49403856,0.00064657,120]
[326885641,1715541051907,-1345.11,0.00064657,120]
[326885642,1715541051922,-500.0,0.00064657,120]
[326885643,1715541051931,-500.0,0.00064657,120]
[326885644,1715541051940,-500.0,0.00064657,120]
[326885645,1715541051949,-500.0,0.00064657,120]
[326885646,1715541051959,-500.0,0.00064657,120]
[326885647,1715541051968,-500.0,0.00064657,120]
[326885648,1715541051977,-500.0,0.00064657,120]
[326885650,1715541051986,-500.0,0.00064657,120]
[326885652,1715541051997,-2135.22,0.00064657,120]
[326885654,1715541052007,-500.0,0.00064657,120]
[326885656,1715541052016,-515.07,0.00064657,120]
[326885658,1715541052025,-484.28256008,0.00064657,120]
[326885660,1715541052034,-500.0,0.00064657,120]
[326885662,1715541052043,-500.0,0.00064657,120]
[326885664,1715541052052,-1775.92,0.00064657,120]
[326885666,1715541052061,-597.87,0.00064657,120]
[326885668,1715541052070,-512.05,0.00064657,120]
[326885670,1715541052079,-500.0,0.00064657,120]
[326885672,1715541052088,-500.0,0.00064657,120]
[326885674,1715541052097,-500.0,0.00064657,120]
[326885676,1715541052106,-500.0,0.00064657,120]
[326885678,1715541052115,-1412.83,0.00064657,120]
[326885680,1715541052123,-500.1645375,0.00064657,120]
[326885682,1715541052132,-1342.75,0.00064657,120]
[326885684,1715541052141,-500.0,0.00064657,120]
[326885686,1715541052150,-421.34080508,0.00064657,120]
[326885688,1715541052159,-487.02076623,0.00064657,120]
[326885690,1715541052167,-3238.55,0.00064657,2]
[326885692,1715541052177,-500.0,0.00064657,120]
[326885694,1715541052186,-12392.6,0.00064657,120]
[326885696,1715541052195,-500.0,0.00064657,120]
[326885698,1715541052205,-500.0,0.00064657,120]
[326885700,1715541052213,-4135.74,0.00064657,120]
[326885702,1715541052222,-830.16,0.00064657,120]
[326885704,1715541052231,-622.69,0.00064657,120]
[326885706,1715541052240,-500.0,0.00064657,120]
[326885708,1715541052249,-2083.37,0.00064657,120]
[326885710,1715541052258,-623.75,0.00064657,120]
[326885712,1715541052267,-35570.04,0.00064657,120]
[326885714,1715541052276,-1744.58,0.00064657,120]
[326885716,1715541052285,-500.0,0.00064657,120]
[326885718,1715541052293,-500.0,0.00064657,120]
[326885720,1715541052303,-11979.43,0.00064657,120]
[326885722,1715541052313,-500.0,0.00064657,120]
[326885724,1715541052322,-1714.81,0.00064657,21]
[326885726,1715541052331,-515.46174364,0.00065434,28]
[326885728,1715541052340,-500.0,0.00065753,120]
[326885730,1715541052349,-500.0,0.00065753,120]
[326885732,1715541052359,-500.0,0.00065753,120]
[326885734,1715541052369,-1345.11,0.00065753,120]
[326885736,1715541052378,-500.0,0.00065753,120]
[326885738,1715541052386,-354.38616804,0.00065753,120]
[326885740,1715541052395,-500.0,0.00065753,120]
[326885742,1715541052404,-500.0,0.00065753,120]
[326885744,1715541052413,-500.0,0.00065753,120]
[326885746,1715541052422,-500.0,0.00065753,120]
[326885748,1715541052431,-500.0,0.00065753,120]
[326885750,1715541052440,-2135.22,0.00065753,120]
[326885752,1715541052448,-500.0,0.00065753,120]
[326885754,1715541052459,-515.07,0.00065753,120]
[326885756,1715541052468,-500.0,0.00065753,120]
[326885758,1715541052478,-500.0,0.00065753,120]
[326885759,1715541052487,-1775.92,0.00065753,120]
[326885761,1715541052496,-597.87,0.00065753,120]
[326885763,1715541052505,-512.05,0.00065753,120]
[326885766,1715541052514,-626.197458,0.00065753,120]
[326885767,1715541052523,-500.0,0.00065753,120]
[326885770,1715541052533,-500.0,0.00065753,120]
[326885772,1715541052542,-500.0,0.00065753,120]
[326885774,1715541052551,-1412.83,0.00065753,120]
[326885776,1715541052560,-1342.75,0.00065753,120]
[326885778,1715541052569,-500.0,0.00065753,120]
[326885779,1715541052578,-3238.55,0.00065753,2]
[326885782,1715541052587,-500.0,0.00065753,120]
[326885784,1715541052596,-12392.6,0.00065753,120]
[326885785,1715541052605,-500.0,0.00065753,120]
[326885787,1715541052615,-500.0,0.00065753,120]
[326885789,1715541052624,-4135.74,0.00065753,120]
[326885800,1715541052702,-830.16,0.00065753,120]
[326885802,1715541052720,-622.69,0.00065753,120]
[326885804,1715541052730,-150.2,0.00065753,120]
[326885806,1715541052739,-500.0,0.00065753,120]
[326885808,1715541052748,-2083.37,0.00065753,120]
[326885810,1715541052757,-623.75,0.00065753,120]
[326885812,1715541052767,-35570.04,0.00065753,120]
[326885814,1715541052776,-1744.58,0.00065753,120]
[326885816,1715541052786,-500.0,0.00065753,120]
[326885818,1715541052796,-500.0,0.00065753,120]
[326885820,1715541052805,-11979.43,0.00065753,120]
[326885822,1715541052814,-500.0,0.00065753,120]
[326885824,1715541052823,-1714.81,0.00065753,21]
[326885826,1715541052832,-500.0,0.00066849,120]
[326885828,1715541052842,-500.0,0.00066849,120]
[326885830,1715541052851,-367.4,0.00066849,120]
[326885832,1715541052860,-1345.11,0.00066849,120]
[326885834,1715541052869,-500.0,0.00066849,120]
[326885836,1715541052878,-500.0,0.00066849,120]
[326885838,1715541052887,-500.0,0.00066849,120]
[326885840,1715541052896,-500.0,0.00066849,120]
[326885842,1715541052906,-500.0,0.00066849,120]
[326885844,1715541052916,-500.0,0.00066849,120]
[326885846,1715541052929,-2135.22,0.00066849,120]
[326885848,1715541052939,-500.0,0.00066849,120]
[326885850,1715541052947,-515.07,0.00066849,120]
[326885852,1715541052958,-500.0,0.00066849,120]
[326885854,1715541052968,-500.0,0.00066849,120]
[326885856,1715541052978,-1775.92,0.00066849,120]
[326885858,1715541052988,-597.87,0.00066849,120]
[326885861,1715541052999,-512.05,0.00066849,120]
[326885863,1715541053009,-500.0,0.00066849,120]
[326885865,1715541053019,-500.0,0.00066849,120]
[326885867,1715541053028,-500.0,0.00066849,120]
[326885869,1715541053037,-1412.83,0.00066849,120]
[326885871,1715541053046,-1342.75,0.00066849,120]
[326885873,1715541053054,-500.0,0.00066849,120]
[326885875,1715541053063,-3238.55,0.00066849,2]
[326885877,1715541053072,-536.39377204,0.00066849,120]
[326885878,1715541053081,-12392.6,0.00066849,120]
[326885880,1715541053090,-649.19114991,0.00066849,120]
[326885882,1715541053099,-500.0,0.00066849,120]
[326885884,1715541053109,-4135.74,0.00066849,120]
[326885887,1715541053118,-830.16,0.00066849,120]
[326885889,1715541053128,-622.69,0.00066849,120]
[326885891,1715541053137,-500.0,0.00066849,120]
[326885893,1715541053148,-2083.37,0.00066849,120]
[326885895,1715541053159,-623.75,0.00066849,120]
[326885897,1715541053168,-35570.04,0.00066849,120]
[326885899,1715541053177,-1744.58,0.00066849,120]
[326885901,1715541053186,-500.0,0.00066849,120]
[326885903,1715541053195,-500.0,0.00066849,120]
[326885905,1715541053206,-11979.43,0.00066849,120]
[326885907,1715541053215,-500.0,0.00066849,120]
[326885909,1715541053224,-1714.81,0.00066849,21]
[326885911,1715541053233,-25177.83166287,0.000669,120]
[326885913,1715541053242,-151.0,0.00067507,120]
[326885915,1715541053251,-500.0,0.00067945,120]
[326885917,1715541053260,-500.0,0.00067945,120]
[326885919,1715541053270,-1345.11,0.00067945,120]
[326885921,1715541053279,-500.0,0.00067945,120]
[326885923,1715541053288,-500.0,0.00067945,120]
[326885925,1715541053297,-500.0,0.00067945,120]
[326885927,1715541053305,-500.0,0.00067945,120]
[326885929,1715541053314,-500.0,0.00067945,120]
[326885931,1715541053324,-500.0,0.00067945,120]
[326885933,1715541053333,-2135.22,0.00067945,120]
[326885935,1715541053342,-178.6824229,0.00067945,120]
[326885937,1715541053351,-515.07,0.00067945,120]
[326885939,1715541053360,-500.0,0.00067945,120]
[326885941,1715541053369,-500.0,0.00067945,120]
[326885943,1715541053378,-1775.92,0.00067945,120]
[326885945,1715541053387,-597.87,0.00067945,120]
[326885947,1715541053396,-512.05,0.00067945,120]
[326885949,1715541053405,-500.0,0.00067945,120]
[326885951,1715541053414,-500.0,0.00067945,120]
[326885953,1715541053423,-500.0,0.00067945,120]
[326885955,1715541053432,-1412.83,0.00067945,120]
[326885957,1715541053441,-1342.75,0.00067945,120]
[326885959,1715541053451,-500.0,0.00067945,120]
[326885961,1715541053460,-3238.55,0.00067945,2]
[326885963,1715541053469,-12392.6,0.00067945,120]
[326885965,1715541053478,-500.0,0.00067945,120]
[326885967,1715541053490,-4135.74,0.00067945,120]
[326885969,1715541053498,-830.16,0.00067945,120]
[326885971,1715541053508,-622.69,0.00067945,120]
[326885973,1715541053517,-500.0,0.00067945,120]
[326885975,1715541053527,-2083.37,0.00067945,120]
[326885977,1715541053536,-623.75,0.00067945,120]
[326885979,1715541053545,-35570.04,0.00067945,120]
[326885981,1715541053554,-1744.58,0.00067945,120]
[326885983,1715541053563,-500.0,0.00067945,120]
[326885985,1715541053573,-500.0,0.00067945,120]
[326885987,1715541053582,-11979.43,0.00067945,120]
[326885989,1715541053591,-500.0,0.00067945,120]
[326885991,1715541053600,-1714.81,0.00067945,21]
[326885993,1715541053609,-1000.0,0.00068213,120]
[326885995,1715541053618,-500.0,0.00068493,120]
[326885997,1715541053627,-527.06720255,0.00068493,120]
[326885999,1715541053635,-500.0,0.00068493,120]
[326886001,1715541053645,-165.4443,0.00068932,120]
[326886003,1715541053654,-155.38242952,0.00069,7]
[326886005,1715541053663,-500.0,0.00069041,120]
[326886007,1715541053672,-500.0,0.00069041,120]
[326886009,1715541053681,-1345.11,0.00069041,120]
[326886011,1715541053690,-500.0,0.00069041,120]
[326886013,1715541053699,-500.0,0.00069041,120]
[326886015,1715541053708,-500.0,0.00069041,120]
[326886017,1715541053717,-474.14395553,0.00069041,120]
[326886019,1715541053727,-500.0,0.00069041,120]
[326886021,1715541053736,-500.0,0.00069041,120]
[326886023,1715541053744,-2135.22,0.00069041,120]
[326886025,1715541053753,-515.07,0.00069041,120]
[326886027,1715541053762,-500.0,0.00069041,120]
[326886029,1715541053772,-500.0,0.00069041,120]
[326886031,1715541053781,-1775.92,0.00069041,120]
[326886032,1715541053789,-597.87,0.00069041,120]
[326886035,1715541053799,-512.05,0.00069041,120]
[326886037,1715541053808,-500.0,0.00069041,120]
[326886039,1715541053817,-500.0,0.00069041,120]
[326886041,1715541053830,-500.0,0.00069041,120]
[326886042,1715541053839,-1412.83,0.00069041,120]
[326886045,1715541053848,-1342.75,0.00069041,120]
[326886046,1715541053857,-500.0,0.00069041,120]
[326886048,1715541053866,-3238.55,0.00069041,2]
[326886050,1715541053875,-12392.6,0.00069041,120]
[326886052,1715541053884,-500.0,0.00069041,120]
[326886055,1715541053895,-4135.74,0.00069041,120]
[326886057,1715541053905,-830.16,0.00069041,120]
[326886059,1715541053914,-622.69,0.00069041,120]
[326886060,1715541053927,-500.0,0.00069041,120]
[326886061,1715541053937,-2083.37,0.00069041,120]
[326886062,1715541053946,-623.75,0.00069041,120]
[326886063,1715541053955,-35570.04,0.00069041,120]
[326886064,1715541053965,-1744.58,0.00069041,120]
[326886065,1715541053974,-500.0,0.00069041,120]
[326886066,1715541053983,-500.0,0.00069041,120]
[326886067,1715541053991,-11979.43,0.00069041,120]
[326886068,1715541054004,-500.0,0.00069041,120]
[326886069,1715541054014,-1714.81,0.00069041,21]
[326886070,1715541054023,-630.0,0.0006997,35]
[326886071,1715541054032,-630.0,0.0006998,35]
[326886072,1715541054041,-630.0,0.0006999,35]
[326886073,1715541054050,-1000.0,0.00069993,60]
[326886074,1715541054059,-606.12230619,0.0007,7]
[326886075,1715541054068,-556.83187958,0.0007,2]
[326886076,1715541054076,-500.0,0.00070136,120]
[326886077,1715541054085,-500.0,0.00070136,120]
[326886078,1715541054094,-1345.11,0.00070136,120]
[326886079,1715541054103,-500.0,0.00070136,120]
[326886080,1715541054112,-500.0,0.00070136,120]
[326886081,1715541054121,-500.0,0.00070136,120]
[326886082,1715541054130,-479.83455182,0.00070136,120]
[326886083,1715541054139,-500.0,0.00070136,120]
[326886084,1715541054148,-2135.22,0.00070136,120]
[326886085,1715541054157,-515.07,0.00070136,120]
[326886086,1715541054166,-500.0,0.00070136,120]
[326886087,1715541054175,-500.0,0.00070136,120]
[326886088,1715541054184,-1775.92,0.00070136,120]
[326886089,1715541054193,-597.87,0.00070136,120]
[326886090,1715541054202,-512.05,0.00070136,120]
[326886091,1715541054211,-500.0,0.00070136,120]
[326886092,1715541054221,-500.0,0.00070136,120]
[326886093,1715541054230,-500.0,0.00070136,120]
[326886094,1715541054239,-1412.83,0.00070136,120]
[326886095,1715541054248,-1342.75,0.00070136,120]
[326886096,1715541054257,-500.0,0.00070136,120]
[326886097,1715541054265,-3238.55,0.00070136,2]
[326886098,1715541054274,-12392.6,0.00070136,120]
[326886099,1715541054284,-500.0,0.00070136,120]
[326886100,1715541054293,-4135.74,0.00070136,120]
[326886101,1715541054302,-830.16,0.00070136,120]
[326886102,1715541054312,-622.69,0.00070136,120]
[326886103,1715541054321,-500.0,0.00070136,120]
[326886104,1715541054331,-2083.37,0.00070136,120]
[326886105,1715541054340,-623.75,0.00070136,120]
[326886106,1715541054349,-35570.04,0.00070136,120]
[326886107,1715541054359,-1744.58,0.00070136,120]
[326886108,1715541054367,-645.29967292,0.00070136,120]
[326886109,1715541054376,-370.21,0.00070136,120]
[326886110,1715541054385,-11979.43,0.00070136,120]
[326886111,1715541054395,-644.36768368,0.00070136,120]
[326886112,1715541054403,-1714.81,0.00070136,21]
[326886113,1715541054413,-515.46174364,0.00070256,28]
[326886114,1715541054422,-500.0,0.00071232,120]
[326886115,1715541054431,-499.22229223,0.00071232,120]
[326886116,1715541054441,-1345.11,0.00071232,120]
[326886117,1715541054450,-500.0,0.00071232,120]
[326886118,1715541054460,-467.83201886,0.00071232,120]
[326886119,1715541054469,-500.0,0.00071232,120]
[326886120,1715541054477,-500.0,0.00071232,120]
[326886121,1715541054487,-2135.22,0.00071232,120]
[326886122,1715541054495,-515.07,0.00071232,120]
[326886123,1715541054504,-500.0,0.00071232,120]
[326886124,1715541054513,-500.0,0.00071232,120]
[326886125,1715541054522,-1775.92,0.00071232,120]
[326886126,1715541054532,-597.87,0.00071232,120]
[326886127,1715541054541,-512.05,0.00071232,120]
[326886128,1715541054550,-500.0,0.00071232,120]
[326886129,1715541054559,-483.8176778,0.00071232,120]
[326886130,1715541054568,-500.0,0.00071232,120]
[326886131,1715541054577,-1412.83,0.00071232,120]
[326886132,1715541054586,-1342.75,0.00071232,120]
[326886133,1715541054595,-500.0,0.00071232,120]
[326886134,1715541054604,-500.0,0.00071232,120]
[326886135,1715541054614,-3238.55,0.00071232,2]
[326886136,1715541054622,-12392.6,0.00071232,120]
[326886137,1715541054631,-500.0,0.00071232,120]
[326886138,1715541054641,-4135.74,0.00071232,120]
[326886139,1715541054650,-830.16,0.00071232,120]
[326886140,1715541054660,-622.69,0.00071232,120]
[326886141,1715541054668,-560.86113966,0.00071232,120]
[326886142,1715541054677,-2083.37,0.00071232,120]
[326886143,1715541054687,-623.75,0.00071232,120]
[326886144,1715541054696,-35570.04,0.00071232,120]
[326886145,1715541054707,-1744.58,0.00071232,120]
[326886146,1715541054716,-11979.43,0.00071232,120]
[326886147,1715541054725,-1714.81,0.00071232,21]
[326886148,1715541054735,-160.065479,0.00072172,120]
[326886149,1715541054813,-50000.0,0.000723,120]
[326886150,1715541054831,-1345.11,0.00072328,120]
[326886151,1715541054840,-500.0,0.00072328,120]
[326886152,1715541054849,-632.61325663,0.00072328,120]
[326886153,1715541054858,-500.0,0.00072328,120]
[326886154,1715541054868,-2135.22,0.00072328,120]
[326886155,1715541054877,-515.07,0.00072328,120]
[326886156,1715541054886,-500.0,0.00072328,120]
[326886157,1715541054896,-500.0,0.00072328,120]
[326886158,1715541054905,-1775.92,0.00072328,120]
[326886159,1715541054916,-597.87,0.00072328,120]
[326886160,1715541054928,-512.05,0.00072328,120]
[326886161,1715541054937,-500.0,0.00072328,120]
[326886162,1715541054946,-500.0,0.00072328,120]
[326886163,1715541054957,-1412.83,0.00072328,120]
[326886164,1715541054967,-1342.75,0.00072328,120]
[326886165,1715541054976,-500.0,0.00072328,120]
[326886166,1715541054985,-3238.55,0.00072328,2]
[326886167,1715541054996,-12392.6,0.00072328,120]
[326886169,1715541055005,-500.0,0.00072328,120]
[326886171,1715541055015,-4135.74,0.00072328,120]
[326886172,1715541055024,-830.16,0.00072328,120]
[326886173,1715541055034,-622.69,0.00072328,120]
[326886174,1715541055043,-2083.37,0.00072328,120]
[326886175,1715541055052,-623.75,0.00072328,120]
[326886176,1715541055061,-35570.04,0.00072328,120]
[326886177,1715541055070,-1744.58,0.00072328,120]
[326886178,1715541055079,-11979.43,0.00072328,120]
[326886179,1715541055088,-1714.81,0.00072328,21]
[326886180,1715541055097,-151.0,0.00072986,120]
[326886181,1715541055107,-1345.11,0.00073424,120]
[326886182,1715541055116,-500.0,0.00073424,120]
[326886183,1715541055125,-500.0,0.00073424,120]
[326886184,1715541055135,-2135.22,0.00073424,120]
[326886185,1715541055144,-515.07,0.00073424,120]
[326886186,1715541055152,-500.0,0.00073424,120]
[326886187,1715541055162,-500.0,0.00073424,120]
[326886189,1715541055171,-1775.92,0.00073424,120]
[326886191,1715541055180,-597.87,0.00073424,120]
[326886193,1715541055189,-512.05,0.00073424,120]
[326886195,1715541055198,-500.0,0.00073424,120]
[326886197,1715541055207,-500.0,0.00073424,120]
[326886199,1715541055216,-1412.83,0.00073424,120]
[326886201,1715541055225,-1342.75,0.00073424,120]
[326886203,1715541055234,-500.0,0.00073424,120]
[326886205,1715541055243,-3238.55,0.00073424,2]
[326886207,1715541055253,-12392.6,0.00073424,120]
[326886209,1715541055262,-500.0,0.00073424,120]
[326886211,1715541055271,-4135.74,0.00073424,120]
[326886213,1715541055280,-830.16,0.00073424,120]
[326886215,1715541055289,-622.69,0.00073424,120]
[326886217,1715541055299,-2083.37,0.00073424,120]
[326886219,1715541055308,-623.75,0.00073424,120]
[326886221,1715541055317,-35570.04,0.00073424,120]
[326886223,1715541055327,-1744.58,0.00073424,120]
[326886225,1715541055336,-11979.43,0.00073424,120]
[326886227,1715541055345,-1714.81,0.00073424,21]
[326886229,1715541055354,-500.0,0.00073972,120]
[326886231,1715541055363,-1345.11,0.0007452,120]
[326886233,1715541055372,-500.0,0.0007452,120]
[326886235,1715541055381,-500.0,0.0007452,120]
[326886237,1715541055391,-2135.22,0.0007452,120]
[326886239,1715541055400,-515.07,0.0007452,120]
[326886241,1715541055409,-500.0,0.0007452,120]
[326886243,1715541055418,-500.0,0.0007452,120]
[326886245,1715541055428,-1775.92,0.0007452,120]
[326886247,1715541055437,-597.87,0.0007452,120]
[326886249,1715541055447,-512.05,0.0007452,120]
[326886250,1715541055457,-500.0,0.0007452,120]
[326886252,1715541055466,-500.0,0.0007452,120]
[326886254,1715541055475,-1412.83,0.0007452,120]
[326886255,1715541055485,-1342.75,0.0007452,120]
[326886256,1715541055495,-500.0,0.0007452,120]
[326886257,1715541055503,-3238.55,0.0007452,2]
[326886258,1715541055512,-12392.6,0.0007452,120]
[326886259,1715541055521,-500.0,0.0007452,120]
[326886260,1715541055531,-4135.74,0.0007452,120]
[326886261,1715541055540,-622.69,0.0007452,120]
[326886262,1715541055550,-830.16,0.0007452,120]
[326886263,1715541055558,-2083.37,0.0007452,120]
[326886264,1715541055568,-623.75,0.0007452,120]
[326886265,1715541055577,-35570.04,0.0007452,120]
[326886266,1715541055586,-1744.58,0.0007452,120]
[326886267,1715541055595,-11979.43,0.0007452,120]
[326886268,1715541055605,-1714.81,0.0007452,21]
[326886269,1715541055614,-151.0,0.00075014,120]
[326886270,1715541055623,-515.46174364,0.00075078,28]
[326886271,1715541055632,-1345.11,0.00075616,120]
[326886272,1715541055642,-500.0,0.00075616,120]
[326886273,1715541055651,-500.0,0.00075616,120]
[326886274,1715541055660,-2135.22,0.00075616,120]
[326886275,1715541055669,-515.07,0.00075616,120]
[326886276,1715541055679,-199.91012426,0.00075616,120]
[326886277,1715541055688,-500.0,0.00075616,120]
[326886278,1715541055697,-1775.92,0.00075616,120]
[326886279,1715541055707,-597.87,0.00075616,120]
[326886280,1715541055717,-512.05,0.00075616,120]
[326886281,1715541055727,-354.01575205,0.00075616,120]
[326886282,1715541055736,-463.06279233,0.00075616,120]
[326886283,1715541055745,-1412.83,0.00075616,120]